bitfinex/quotes_BTCUSD_20240810
["timestamp","ask_amount","ask_price","bid_price","bid_amount"]
[1723332404158,0.20604783,60940.0,60939.0,0.082049]
[1723332404559,0.22896128,60940.0,60937.0,0.08205]
[1723332404809,0.22896128,60940.0,60938.0,0.08205]
[1723332404810,0.19284353,60940.0,60938.0,0.08205]
[1723332405014,0.19684353,60940.0,60939.0,0.001]
[1723332405186,0.23296118,60940.0,60939.0,0.001]
[1723332405387,0.23296118,60940.0,60938.0,0.08205]
[1723332405388,0.22896118,60940.0,60938.0,0.08205]
[1723332405593,0.0793,60939.0,60938.0,0.08205]
[1723332405799,0.10224309,60939.0,60938.0,0.08205]
[1723332406373,0.0606,60938.0,60936.0,0.082052]
[1723332406599,0.0793,60937.0,60936.0,0.082052]
[1723332406917,0.10224223,60937.0,60936.0,0.082052]
[1723332407885,0.10524223,60937.0,60936.0,0.082052]
[1723332409533,0.10824223,60937.0,60936.0,0.082052]
[1723332409947,0.10907323,60937.0,60936.0,0.082052]
[1723332410849,0.10907323,60937.0,60936.0,0.246158]
[1723332411325,0.10907323,60937.0,60936.0,0.082052]
[1723332414600,0.10907323,60937.0,60936.0,0.246158]
[1723332419736,0.10907323,60937.0,60936.0,0.082052]
[1723332423625,0.14522204,60937.0,60936.0,0.082052]
[1723332423849,0.10907323,60937.0,60936.0,0.082052]
[1723332424372,0.14522174,60937.0,60936.0,0.082052]
[1723332428030,0.0796,60926.0,60925.0,0.082068]
[1723332428203,0.0796,60926.0,60925.0,0.1518665]
[1723332428402,0.11576648,60926.0,60921.0,0.164144]
[1723332428605,0.03616648,60925.0,60924.0,0.082069]
[1723332428965,0.05909113,60925.0,60924.0,0.082069]
[1723332429372,0.05909113,60925.0,60924.0,0.246207]
[1723332429590,0.02292465,60925.0,60924.0,0.246207]
[1723332429789,0.0590709,60925.0,60924.0,0.246207]
[1723332430192,0.05906811,60925.0,60924.0,0.082069]
[1723332430777,0.06006811,60925.0,60924.0,0.082069]
[1723332430978,0.05906811,60925.0,60924.0,0.082069]
[1723332431181,0.06006811,60925.0,60924.0,0.082069]
[1723332431379,0.06306811,60925.0,60924.0,0.082069]
[1723332431679,0.06208627,60925.0,60924.0,0.082069]
[1723332432638,0.02592465,60925.0,60924.0,0.082069]
[1723332432848,0.02892465,60925.0,60924.0,0.082069]
[1723332435677,0.10632465,60925.0,60924.0,0.082069]
[1723332436137,0.10332465,60925.0,60924.0,0.082069]
[1723332436478,0.10632465,60925.0,60924.0,0.082069]
[1723332436689,0.10332465,60925.0,60924.0,0.082069]
[1723332437486,0.10632465,60925.0,60924.0,0.082069]
[1723332437712,0.10332465,60925.0,60924.0,0.082069]
[1723332438191,0.10632465,60925.0,60924.0,0.082069]
[1723332438809,0.10632465,60925.0,60922.0,0.082071]
[1723332439008,0.10632465,60925.0,60923.0,0.08207]
[1723332439165,0.10632465,60925.0,60924.0,0.082069]
[1723332439365,0.10332465,60925.0,60924.0,0.082069]
[1723332439779,0.10632465,60925.0,60924.0,0.082069]
[1723332439998,0.10332465,60925.0,60924.0,0.082069]
[1723332440402,0.10632465,60925.0,60924.0,0.082069]
[1723332442319,0.02892465,60925.0,60924.0,0.246207]
[1723332445549,0.02975565,60925.0,60924.0,0.246207]
[1723332452553,0.02975565,60925.0,60924.0,0.410345]
[1723332452794,0.02975565,60925.0,60924.0,0.488745]
[1723332453231,0.410427,60912.0,60910.0,0.04915783]
[1723332453436,0.410427,60912.0,60903.0,0.49107874]
[1723332453437,0.1383,60910.0,60903.0,0.49107874]
[1723332453640,0.08184646,60904.0,60902.0,0.0009141]
[1723332453779,0.0774,60903.0,60902.0,0.0009141]
[1723332453981,0.13669597,60903.0,60902.0,0.0009141]
[1723332454619,0.10055165,60903.0,60902.0,0.0009141]
[1723332456023,0.24544865,60903.0,60902.0,0.0009141]
[1723332456434,0.24644865,60903.0,60902.0,0.0009141]
[1723332458084,0.16435165,60903.0,60902.0,0.0009141]
[1723332459531,0.02415165,60903.0,60902.0,0.95982202]
[1723332459663,0.02415165,60903.0,60902.0,0.98282202]
[1723332459863,0.001,60903.0,60902.0,1.14902002]
[1723332460068,0.001,60903.0,60902.0,1.15869654]
[1723332460270,0.001,60903.0,60902.0,1.22907208]
[1723332460570,0.000831,60925.0,60919.0,0.082075]
[1723332460769,0.08207,60924.0,60919.0,0.082075]
[1723332460999,0.10368236,60924.0,60919.0,0.082075]
[1723332461190,0.10368236,60924.0,60920.0,0.082074]
[1723332461612,0.1,60923.0,60918.0,0.082076]
[1723332461814,0.1,60923.0,60915.0,0.164162]
[1723332462016,0.0216115,60922.0,60918.0,0.082076]
[1723332462426,0.08207,60923.0,60918.0,0.082076]
[1723332462620,0.02161107,60921.0,60918.0,0.082076]
[1723332462848,0.08207,60923.0,60918.0,0.082076]
[1723332462849,0.1216115,60922.0,60918.0,0.082076]
[1723332462998,0.02161063,60920.0,60919.0,0.001]
[1723332463209,0.1,60922.0,60919.0,0.002]
[1723332463421,0.0827,60920.0,60916.0,0.082079]
[1723332463636,0.0827,60920.0,60918.0,0.082077]
[1723332463637,0.02161205,60919.0,60918.0,0.082077]
[1723332463862,0.02161205,60919.0,60918.0,0.084077]
[1723332464111,0.02161205,60919.0,60918.0,0.083077]
[1723332464330,0.02161205,60919.0,60918.0,0.246232]
[1723332464737,0.01,60920.0,60919.0,0.082076]
[1723332465800,0.264769,60924.0,60919.0,0.082076]
[1723332466173,0.08184646,60921.0,60919.0,0.082076]
[1723332466577,0.011,60920.0,60919.0,0.083076]
[1723332466818,0.08184646,60921.0,60919.0,0.082076]
[1723332467118,0.08184646,60921.0,60919.0,0.083076]
[1723332467345,0.08184646,60921.0,60919.0,0.084076]
[1723332467474,0.01,60920.0,60919.0,0.084076]
[1723332467679,0.01,60920.0,60919.0,0.002]
[1723332468453,0.01,60920.0,60919.0,0.001]
[1723332468610,0.1555,60920.0,60919.0,0.001]
[1723332468807,0.1455,60920.0,60916.0,0.164159]
[1723332469214,0.1455,60920.0,60919.0,0.083076]
[1723332469583,0.1455,60920.0,60919.0,0.082076]
[1723332469584,0.0827,60920.0,60919.0,0.082076]
[1723332469899,0.0827,60923.0,60920.0,0.082074]
[1723332470696,0.0827,60923.0,60919.0,0.002]
[1723332470697,0.011,60920.0,60919.0,0.002]
[1723332470906,0.011,60920.0,60919.0,0.084076]
[1723332471103,0.011,60920.0,60919.0,0.41238]
[1723332471305,0.000831,60925.0,60924.0,0.246207]
[1723332471657,0.000831,60925.0,60924.0,0.410345]
[1723332472839,0.004831,60925.0,60924.0,0.410345]
[1723332473649,0.008831,60925.0,60924.0,0.410345]
[1723332473818,0.008831,60925.0,60924.0,0.246207]
[1723332474022,0.004831,60925.0,60924.0,0.246207]
[1723332474221,0.008831,60925.0,60924.0,0.246207]
[1723332474773,0.004831,60925.0,60924.0,0.246207]
[1723332475928,0.008831,60925.0,60924.0,0.246207]
[1723332477221,0.158,60913.0,60905.0,0.04906379]
[1723332477422,0.082,60907.0,60905.0,0.082094]
[1723332477668,0.082,60907.0,60902.0,0.0009141]
[1723332477889,0.02182932,60906.0,60902.0,0.0009141]
[1723332478450,0.082095,60905.0,60902.0,0.0009141]
[1723332478651,0.08184646,60904.0,60902.0,0.0009141]
[1723332478875,0.10366958,60904.0,60902.0,0.0009141]
[1723332480413,0.89649692,60903.0,60902.0,0.0009141]
[1723332480619,1.01831934,60903.0,60902.0,0.0009141]
[1723332480875,1.03831934,60903.0,60902.0,0.0009141]
[1723332481147,1.07412449,60903.0,60902.0,0.0009141]
[1723332481375,1.20703695,60903.0,60902.0,0.0009141]
[1723332481579,1.21553281,60903.0,60902.0,0.0009141]
[1723332482057,1.3424878,60903.0,60902.0,0.0029141]
[1723332482352,1.06812449,60903.0,60902.0,0.0029141]
[1723332482578,1.06112449,60903.0,60902.0,0.0019141]
[1723332482690,1.05412449,60903.0,60902.0,0.0009141]
[1723332483056,1.06812449,60903.0,60902.0,0.0019141]
[1723332483444,1.08212449,60903.0,60902.0,0.0029141]
[1723332483847,1.10212449,60903.0,60902.0,0.0029141]
[1723332484196,1.08812449,60903.0,60902.0,0.0019141]
[1723332484390,1.08812558,60903.0,60902.0,0.0029141]
[1723332484601,1.10212558,60903.0,60902.0,0.0029141]
[1723332484731,1.05231934,60903.0,60902.0,0.0019141]
[1723332484941,1.1021268,60903.0,60902.0,0.0029141]
[1723332485586,1.22052413,60903.0,60902.0,0.0029141]
[1723332487301,1.1021268,60903.0,60902.0,0.0029141]
[1723332487984,1.0821268,60903.0,60902.0,0.0029141]
[1723332488337,0.9079318,60903.0,60902.0,0.0029141]
[1723332488542,0.80612434,60903.0,60902.0,0.0029141]
[1723332488748,0.84192725,60903.0,60902.0,0.0029141]
[1723332488966,0.84192725,60903.0,60902.0,0.0019141]
[1723332489174,0.81392725,60903.0,60902.0,0.0009141]
[1723332489348,0.82792725,60903.0,60902.0,0.0019141]
[1723332489569,0.84192725,60903.0,60902.0,0.0029141]
[1723332489767,0.80612434,60903.0,60902.0,0.0029141]
[1723332492298,0.72412434,60903.0,60902.0,0.0029141]
[1723332496133,0.73412434,60903.0,60902.0,0.0029141]
[1723332496913,0.95173587,60903.0,60902.0,0.0029141]
[1723332497331,1.15172167,60903.0,60902.0,0.0029141]
[1723332498714,1.03371014,60903.0,60902.0,0.0029141]
[1723332499593,1.01371014,60903.0,60902.0,0.0029141]
[1723332499804,0.83951514,60903.0,60902.0,0.0029141]
[1723332499998,0.80372434,60903.0,60902.0,0.0029141]
[1723332500195,0.8395256,60903.0,60902.0,0.0029141]
[1723332501308,0.83952656,60903.0,60902.0,0.0029141]
[1723332502653,0.75992656,60903.0,60902.0,0.0029141]
[1723332502780,0.72412434,60903.0,60902.0,0.0029141]
[1723332503000,0.75993293,60903.0,60902.0,0.0029141]
[1723332503235,0.75993476,60903.0,60902.0,0.0029141]
[1723332503783,0.75996078,60903.0,60902.0,0.0029141]
[1723332505353,0.76996078,60903.0,60902.0,0.0029141]
[1723332506196,0.75996078,60903.0,60902.0,0.0029141]
[1723332506391,0.89290061,60903.0,60902.0,0.0029141]
[1723332506907,0.72412434,60903.0,60902.0,0.0029141]
[1723332507119,0.89290114,60903.0,60902.0,0.0029141]
[1723332507278,0.85706251,60903.0,60902.0,0.0029141]
[1723332507606,0.89290131,60903.0,60902.0,0.0029141]
[1723332507759,0.85706079,60903.0,60902.0,0.0029141]
[1723332507964,0.89290305,60903.0,60902.0,0.0029141]
[1723332508399,0.94643168,60903.0,60902.0,0.0029141]
[1723332509187,0.77765297,60903.0,60902.0,0.0029141]
[1723332509314,0.94647008,60903.0,60902.0,0.0029141]
[1723332510957,0.76863168,60903.0,60902.0,0.0019141]
[1723332511112,0.75463168,60903.0,60902.0,0.0009141]
[1723332511321,0.78163168,60903.0,60902.0,0.0029141]
[1723332511533,0.78166662,60903.0,60902.0,0.0029141]
[1723332511731,0.76866662,60903.0,60902.0,0.0019141]
[1723332511942,0.78166662,60903.0,60902.0,0.0029141]
[1723332512144,0.76766662,60903.0,60902.0,0.0019141]
[1723332512412,0.78166662,60903.0,60902.0,0.0029141]
[1723332512907,0.76166662,60903.0,60902.0,0.0029141]
[1723332514503,0.76170203,60903.0,60902.0,0.0029141]
[1723332515750,0.84010203,60903.0,60902.0,0.0029141]
[1723332516585,0.84093303,60903.0,60902.0,0.0029141]
[1723332516932,0.85093303,60903.0,60902.0,0.0029141]
[1723332517448,0.84093303,60903.0,60902.0,0.0029141]
[1723332517987,0.8053053,60903.0,60902.0,0.0029141]
[1723332518215,0.84119586,60903.0,60902.0,0.0029141]
[1723332518412,0.61854042,60903.0,60902.0,0.0029141]
[1723332518613,0.84119044,60903.0,60902.0,0.0029141]
[1723332519835,0.8412059,60903.0,60902.0,0.0029141]
[1723332521855,0.84122283,60903.0,60902.0,0.0029141]
[1723332523780,0.76282283,60903.0,60902.0,0.0029141]
[1723332524195,0.84122283,60903.0,60902.0,0.0029141]
[1723332525005,0.61854042,60903.0,60902.0,0.0029141]
[1723332525209,0.84091239,60903.0,60902.0,0.0029141]
[1723332525754,0.84093669,60903.0,60902.0,0.0029141]
[1723332527501,0.85093669,60903.0,60902.0,0.0029141]
[1723332529528,0.761551,60903.0,60902.0,0.0029141]
[1723332529729,0.85088208,60903.0,60902.0,0.0029141]
[1723332530065,0.62854042,60903.0,60902.0,0.0029141]
[1723332530252,0.85070709,60903.0,60902.0,0.0029141]
[1723332530450,1.34161701,60903.0,60902.0,0.0029141]
[1723332533637,1.34170815,60903.0,60902.0,0.0029141]
[1723332533814,1.11945034,60903.0,60902.0,0.0029141]
[1723332534018,1.341729,60903.0,60902.0,0.0029141]
[1723332535722,1.079134,60903.0,60902.0,0.0029141]
[1723332535927,1.147534,60903.0,60902.0,0.0029141]
[1723332537641,1.1475401,60903.0,60902.0,0.0029141]
[1723332539588,1.0083401,60903.0,60902.0,0.0029141]
[1723332539806,1.0046401,60903.0,60902.0,0.0029141]
[1723332540934,1.00458492,60903.0,60902.0,0.0029141]
[1723332541606,1.00456518,60903.0,60902.0,0.0029141]
[1723332542031,1.01456518,60903.0,60902.0,0.0029141]
[1723332544639,1.01463917,60903.0,60902.0,0.0029141]
[1723332546067,1.00463917,60903.0,60902.0,0.0029141]
[1723332548114,0.87169862,60903.0,60902.0,0.0029141]
[1723332548318,1.00464101,60903.0,60902.0,0.0029141]
[1723332549168,1.00461271,60903.0,60902.0,0.0029141]
[1723332549564,0.67660279,60903.0,60902.0,0.0029141]
[1723332549705,0.59820279,60903.0,60902.0,0.0854141]
[1723332549910,0.54468727,60903.0,60902.0,0.1504141]
[1723332550370,0.38049227,60903.0,60902.0,0.1504141]
[1723332550594,0.21839527,60903.0,60902.0,0.2325131]
[1723332550765,0.08548118,60903.0,60902.0,0.2325131]
[1723332550938,0.08548118,60903.0,60902.0,0.3967111]
[1723332551141,0.15909707,60903.0,60902.0,0.3957111]
[1723332551343,0.15909707,60903.0,60902.0,0.3947111]
[1723332551344,0.13209707,60903.0,60902.0,0.3947111]
[1723332551544,0.14609707,60903.0,60902.0,0.3957111]
[1723332551769,0.13199713,60903.0,60902.0,0.3947111]
[1723332552131,0.10926931,60903.0,60902.0,0.3957111]
[1723332552328,0.14496515,60903.0,60902.0,0.3957111]
[1723332552527,0.07134926,60903.0,60902.0,0.3957111]
[1723332552806,0.06252684,60903.0,60902.0,0.3967111]
[1723332553161,0.04952684,60903.0,60902.0,0.3957111]
[1723332553513,0.026831,60903.0,60902.0,0.3967111]
[1723332554133,0.06253819,60903.0,60902.0,0.3967111]
[1723332554335,0.026831,60903.0,60902.0,0.3967111]
[1723332556514,0.026831,60903.0,60902.0,0.5609091]
[1723332557556,0.026831,60903.0,60902.0,0.5839091]
[1723332558848,0.013831,60903.0,60902.0,0.5829091]
[1723332559049,0.010831,60903.0,60902.0,0.5829091]
[1723332559494,0.000831,60903.0,60902.0,0.5819091]
[1723332559814,0.006831,60903.0,60902.0,0.4187111]
[1723332560294,0.006831,60903.0,60902.0,0.5829091]
[1723332560492,0.012831,60903.0,60902.0,0.5839091]
[1723332561288,0.012831,60903.0,60902.0,0.4197111]
[1723332561470,0.012831,60903.0,60902.0,0.5839091]
[1723332562707,0.012831,60903.0,60902.0,0.2325131]
[1723332563091,0.03443379,60903.0,60902.0,0.2325131]
[1723332563293,0.012831,60903.0,60902.0,0.2325131]
[1723332563500,0.03443408,60903.0,60902.0,0.2325131]
[1723332563711,0.012831,60903.0,60902.0,0.0850131]
[1723332563933,0.11573293,60903.0,60902.0,0.0850131]
[1723332564139,0.094131,60903.0,60902.0,0.0850131]
[1723332564331,0.03443817,60903.0,60902.0,0.0850131]
[1723332566900,0.03443817,60903.0,60902.0,0.0029141]
[1723332567101,0.07016255,60903.0,60902.0,0.0029141]
[1723332567548,0.15225955,60903.0,60902.0,0.0029141]
[1723332567701,0.07016255,60903.0,60902.0,0.0029141]
[1723332569361,0.07013981,60903.0,60902.0,0.0029141]
[1723332571127,0.07013422,60903.0,60902.0,0.0029141]
[1723332573255,0.45864614,60903.0,60902.0,0.0029141]
[1723332574618,0.31524914,60903.0,60902.0,0.0029141]
[1723332575019,0.03443817,60903.0,60902.0,0.1476131]
[1723332575215,0.07012763,60903.0,60902.0,0.2246131]
[1723332575445,0.07012763,60903.0,60902.0,0.5530091]
[1723332575649,0.03443817,60903.0,60902.0,0.5760091]
[1723332575905,0.012831,60903.0,60902.0,0.5760091]
[1723332587229,0.012831,60903.0,60902.0,0.7402071]
[1723332589105,0.012831,60903.0,60902.0,0.90402202]
[1723332589708,0.012831,60903.0,60902.0,1.06822002]
[1723332590137,0.012831,60903.0,60902.0,1.14029264]
[1723332590867,0.006831,60903.0,60902.0,1.13929264]
[1723332591226,0.006831,60903.0,60902.0,1.14029264]
[1723332591788,0.000831,60903.0,60902.0,1.13829264]
[1723332592099,0.001831,60903.0,60902.0,1.14529264]
[1723332592535,0.002831,60903.0,60902.0,1.15229264]
[1723332592948,0.002831,60903.0,60902.0,1.08022002]
[1723332593204,0.002831,60903.0,60902.0,1.15196311]
[1723332594383,0.001831,60903.0,60902.0,1.14496311]
[1723332594789,0.002831,60903.0,60902.0,1.15196311]
[1723332595421,0.001831,60903.0,60902.0,1.14496311]
[1723332595953,0.002831,60903.0,60902.0,1.15196311]
[1723332596632,0.002831,60903.0,60902.0,1.15192043]
[1723332597173,0.002831,60903.0,60902.0,1.15193387]
[1723332598514,0.002831,60903.0,60902.0,1.15189328]
[1723332600547,0.002831,60903.0,60902.0,1.15180788]
[1723332600993,0.002831,60903.0,60902.0,0.66119496]
[1723332601143,0.002831,60903.0,60902.0,0.73959496]
[1723332601342,0.002831,60903.0,60902.0,0.6680071]
[1723332602454,0.002831,60903.0,60902.0,0.68427267]
[1723332602654,0.226828,60903.0,60902.0,0.0149141]
[1723332602919,0.144731,60903.0,60902.0,0.0149141]
[1723332603263,0.225828,60903.0,60902.0,0.0079141]
[1723332603744,0.224828,60903.0,60902.0,0.0009141]
[1723332604069,0.154731,60903.0,60902.0,0.0039141]
[1723332604616,0.154731,60903.0,60902.0,0.0019141]
[1723332604819,0.165731,60903.0,60902.0,0.0029141]
[1723332605265,0.142731,60903.0,60902.0,0.0009141]
[1723332605692,0.156731,60903.0,60902.0,0.0019141]
[1723332606022,0.142731,60903.0,60902.0,0.0009141]
[1723332606229,0.142731,60903.0,60902.0,0.0830131]
[1723332606437,0.153731,60903.0,60902.0,0.0840131]
[1723332606660,0.164731,60903.0,60902.0,0.0850131]
[1723332607199,0.153731,60903.0,60902.0,0.0840131]
[1723332607333,0.142731,60903.0,60902.0,0.0830131]
[1723332607802,0.152731,60903.0,60902.0,0.0840131]
[1723332608549,0.164731,60903.0,60902.0,0.0850131]
[1723332608989,0.152731,60903.0,60902.0,0.2482111]
[1723332609916,0.163731,60903.0,60902.0,0.2492111]
[1723332610121,0.021831,60903.0,60902.0,0.4134091]
[1723332610409,0.021831,60903.0,60902.0,0.5148091]
[1723332612447,0.021831,60903.0,60902.0,0.4364091]
[1723332615107,0.021831,60903.0,60902.0,0.0850131]
[1723332615108,0.163731,60903.0,60902.0,0.0850131]
[1723332615679,0.163731,60903.0,60902.0,0.0029141]
[1723332615922,0.163731,60903.0,60902.0,0.0850131]
[1723332617935,0.18595682,60903.0,60902.0,0.0850131]
[1723332620171,0.04405682,60903.0,60902.0,0.0850131]
[1723332620375,0.04405682,60903.0,60902.0,0.4134091]
[1723332620572,0.021831,60903.0,60902.0,0.4134091]
[1723332620888,0.021831,60903.0,60902.0,0.4364091]
[1723332621921,0.021831,60903.0,60902.0,0.6006071]
[1723332622329,0.010831,60903.0,60902.0,0.5996071]
[1723332622541,0.006831,60903.0,60902.0,0.5996071]
[1723332622747,0.017831,60903.0,60902.0,0.6006071]
[1723332623130,0.017831,60903.0,60902.0,0.5996071]
[1723332623336,0.006831,60903.0,60902.0,0.5996071]
[1723332623737,0.011831,60903.0,60902.0,0.5996071]
[1723332623935,0.011831,60903.0,60902.0,0.6814071]
[1723332629605,0.011831,60903.0,60902.0,0.75376455]
[1723332630769,0.011831,60903.0,60902.0,0.75373284]
[1723332634273,0.011831,60903.0,60902.0,0.6814071]
[1723332634472,0.011831,60903.0,60902.0,0.75351114]
[1723332638003,0.011831,60903.0,60902.0,1.14582406]
[1723332638322,0.011831,60903.0,60902.0,1.14631075]
[1723332638525,0.011831,60903.0,60902.0,0.98211275]
[1723332638926,0.011831,60903.0,60902.0,0.98111275]
[1723332638927,0.000831,60903.0,60902.0,0.98111275]
[1723332639248,0.000831,60903.0,60902.0,0.98211275]
[1723332639249,0.011831,60903.0,60902.0,0.98211275]
[1723332639567,0.011831,60903.0,60902.0,0.98111275]
[1723332639760,0.011831,60903.0,60902.0,0.73949783]
[1723332639957,0.011831,60903.0,60902.0,0.67519783]
[1723332640509,0.005831,60903.0,60902.0,0.67119783]
[1723332640709,0.000831,60903.0,60902.0,0.67119783]
[1723332640952,0.000831,60903.0,60902.0,0.67519783]
[1723332641279,0.000831,60903.0,60902.0,0.67511025]
[1723332641434,0.000831,60903.0,60902.0,0.67111025]
[1723332641833,0.001831,60903.0,60902.0,0.67311025]
[1723332642262,0.001831,60903.0,60902.0,0.67111025]
[1723332642572,0.002831,60903.0,60902.0,0.67111025]
[1723332643283,0.001831,60903.0,60902.0,0.67111025]
[1723332643623,0.000831,60903.0,60902.0,0.67311025]
[1723332643823,0.001831,60903.0,60902.0,0.67311025]
[1723332644480,0.000831,60903.0,60902.0,0.67311025]
[1723332644638,0.000831,60903.0,60902.0,0.67611025]
[1723332645265,0.000831,60903.0,60902.0,0.67111025]
[1723332645466,0.000831,60903.0,60902.0,0.67311025]
[1723332645783,0.000831,60903.0,60902.0,0.6006071]
[1723332646806,0.000831,60903.0,60902.0,0.5986071]
[1723332647213,0.000831,60903.0,60902.0,0.5996071]
[1723332647845,0.000831,60903.0,60902.0,0.6016071]
[1723332648267,0.000831,60903.0,60902.0,0.5996071]
[1723332648385,0.000831,60903.0,60902.0,0.5986071]
[1723332648597,0.000831,60903.0,60902.0,0.67104321]
[1723332649957,0.000831,60903.0,60902.0,0.5986071]
[1723332650375,0.000831,60903.0,60902.0,0.6006071]
[1723332650566,0.000831,60903.0,60902.0,0.6016071]
[1723332650873,0.000831,60903.0,60902.0,0.5996071]
[1723332651075,0.000831,60903.0,60902.0,0.67203816]
[1723332651256,0.000831,60903.0,60902.0,0.5996071]
[1723332651659,0.000831,60903.0,60902.0,0.6026071]
[1723332651856,0.000831,60903.0,60902.0,0.6016071]
[1723332652126,0.000831,60903.0,60902.0,0.67404029]
[1723332652284,0.000831,60903.0,60902.0,0.67604029]
[1723332652495,0.000831,60903.0,60902.0,0.67601159]
[1723332653545,0.000831,60903.0,60902.0,0.67101159]
[1723332654332,0.000831,60903.0,60902.0,0.67107972]
[1723332654743,0.000831,60903.0,60902.0,0.67407972]
[1723332655341,0.000831,60903.0,60902.0,0.67404606]
[1723332655746,0.000831,60903.0,60902.0,0.67604606]
[1723332656063,0.000831,60903.0,60902.0,0.67104606]
[1723332658502,0.000831,60903.0,60902.0,0.97446098]
[1723332658648,0.000831,60903.0,60902.0,1.1878987]
[1723332659577,0.000831,60903.0,60902.0,1.19979821]
[1723332659787,0.000831,60903.0,60902.0,1.20179821]
[1723332659962,0.000831,60903.0,60902.0,1.19979821]
[1723332660408,0.000831,60903.0,60902.0,1.20179821]
[1723332660812,0.000831,60903.0,60902.0,1.20229038]
[1723332662252,0.000831,60903.0,60902.0,1.20629038]
[1723332662808,0.000831,60903.0,60902.0,1.15705066]
[1723332663011,0.000831,60903.0,60902.0,1.20629038]
[1723332664107,0.000831,60903.0,60902.0,1.20632881]
[1723332664951,0.000831,60903.0,60902.0,0.8926313]
[1723332665943,0.000831,60903.0,60902.0,0.8886313]
[1723332666128,0.000831,60903.0,60902.0,0.83539158]
[1723332666335,0.000831,60903.0,60902.0,0.83839158]
[1723332666694,0.000831,60903.0,60902.0,0.84339158]
[1723332667009,0.000831,60903.0,60902.0,0.83539158]
[1723332667248,0.000831,60903.0,60902.0,0.83739158]
[1723332667452,0.000831,60903.0,60902.0,0.76442202]
[1723332667656,0.000831,60903.0,60902.0,0.83747225]
[1723332667859,0.000831,60903.0,60902.0,0.84047225]
[1723332668479,0.000831,60903.0,60902.0,0.83847225]
[1723332668824,0.000831,60903.0,60902.0,0.84047225]
[1723332669046,0.000831,60903.0,60902.0,0.83847225]
[1723332669450,0.000831,60903.0,60902.0,0.83747225]
[1723332669849,0.000831,60903.0,60902.0,0.84047225]
[1723332671055,0.000831,60903.0,60902.0,0.98007225]
[1723332671254,0.000831,60903.0,60902.0,1.0926916]
[1723332671455,0.000831,60903.0,60902.0,1.26341926]
[1723332671680,0.000831,60903.0,60902.0,1.09297617]
[1723332674414,0.000831,60903.0,60902.0,1.22033983]
[1723332674616,0.000831,60903.0,60902.0,1.39078228]
[1723332674829,0.000831,60903.0,60902.0,1.22037561]
[1723332675421,0.000831,60903.0,60902.0,1.22070942]
[1723332675759,0.000831,60903.0,60902.0,1.58420607]
[1723332675958,0.000831,60903.0,60902.0,1.74564085]
[1723332676181,0.000831,60903.0,60902.0,1.74764085]
[1723332676381,0.000831,60903.0,60902.0,1.75740683]
[1723332676679,0.000831,60903.0,60902.0,1.75240683]
[1723332677042,0.001831,60903.0,60902.0,1.76140683]
[1723332677238,0.001831,60903.0,60902.0,1.76340683]
[1723332677484,0.000831,60903.0,60902.0,1.75440683]
[1723332677659,0.000831,60903.0,60902.0,1.75040683]
[1723332677858,0.000831,60903.0,60902.0,1.75240683]
[1723332678082,0.000831,60903.0,60902.0,1.76140683]
[1723332678083,0.001831,60903.0,60902.0,1.76140683]
[1723332678488,0.000831,60903.0,60902.0,1.75040683]
[1723332678696,0.001831,60903.0,60902.0,1.76040683]
[1723332678870,0.001831,60903.0,60902.0,1.77040683]
[1723332678871,0.002831,60903.0,60902.0,1.77040683]
[1723332679422,0.002831,60903.0,60902.0,1.77240683]
[1723332679743,0.002831,60903.0,60902.0,1.77040683]
[1723332681283,0.00231278,60903.0,60902.0,1.77040683]
[1723332681478,0.00231278,60903.0,60902.0,1.77240683]
[1723332681698,0.00231278,60903.0,60902.0,1.79240683]
[1723332681897,0.000831,60924.0,60923.0,0.574493]
[1723332682103,0.000831,60924.0,60923.0,0.83970792]
[1723332682358,0.02287224,60924.0,60923.0,0.83970792]
[1723332682531,0.00076963,60924.0,60923.0,0.91353706]
[1723332683337,0.00676963,60924.0,60923.0,0.91424133]
[1723332683539,0.00676963,60924.0,60923.0,0.84070792]
[1723332683737,0.00076963,60924.0,60923.0,0.91324095]
[1723332683943,0.00076963,60924.0,60923.0,0.83970792]
[1723332684146,0.00176963,60924.0,60923.0,0.83970792]
[1723332684551,0.00076963,60924.0,60923.0,0.83970792]
[1723332684952,0.00176963,60924.0,60923.0,0.83970792]
[1723332685699,0.00076963,60924.0,60923.0,0.83970792]
[1723332686502,0.00076963,60924.0,60923.0,0.84170792]
[1723332688269,0.00076963,60924.0,60923.0,0.84370792]
[1723332689757,0.00076963,60924.0,60923.0,0.84170792]
[1723332689952,0.00076963,60924.0,60923.0,0.85152893]
[1723332690784,0.00076963,60924.0,60923.0,0.85652893]
[1723332691506,0.00076963,60924.0,60923.0,0.85452893]
[1723332691850,0.00076963,60924.0,60923.0,0.85952893]
[1723332693886,0.00076963,60924.0,60923.0,0.60716692]
[1723332694089,0.14186963,60924.0,60923.0,0.498752]
[1723332694534,0.16400246,60924.0,60923.0,0.498752]
[1723332694732,0.16400246,60924.0,60923.0,0.493752]
[1723332694996,0.16400246,60924.0,60923.0,0.488752]
[1723332695197,0.16400246,60924.0,60923.0,0.652893]
[1723332695327,0.16500246,60924.0,60923.0,0.511752]
[1723332696556,0.16400246,60924.0,60923.0,0.511752]
[1723332696756,0.16500246,60924.0,60923.0,0.511752]
[1723332697156,0.16500246,60924.0,60923.0,0.675893]
[1723332697483,0.16500246,60924.0,60923.0,0.511752]
[1723332699229,0.16500246,60924.0,60923.0,0.675893]
[1723332699435,0.16500246,60924.0,60923.0,0.511752]
[1723332699790,0.16500246,60924.0,60923.0,0.675893]
[1723332699995,0.16500246,60924.0,60923.0,0.511752]
[1723332701321,0.16500246,60924.0,60923.0,0.675893]
[1723332701524,0.16500246,60924.0,60923.0,0.511752]
[1723332704381,0.16500246,60924.0,60923.0,0.5126661]
[1723332704593,0.16500246,60924.0,60923.0,0.6768071]
[1723332704732,0.16500246,60924.0,60923.0,0.5126661]
[1723332705723,0.16500246,60924.0,60923.0,0.6768071]
[1723332707121,0.09990246,60924.0,60923.0,0.6768071]
[1723332707724,0.09990246,60924.0,60923.0,0.75033194]
[1723332707928,0.07776963,60924.0,60923.0,0.75033194]
[1723332708327,0.07776963,60924.0,60923.0,0.6768071]
[1723332708505,0.00176963,60924.0,60923.0,0.75047642]
[1723332708703,0.00176963,60924.0,60923.0,0.91429134]
[1723332708934,0.00176963,60924.0,60923.0,0.91429062]
[1723332710442,0.00076963,60924.0,60923.0,0.92386367]
[1723332711367,0.00076963,60924.0,60923.0,0.92686367]